bitfinex/quotes_ETHUSD_20240824
["timestamp","ask_amount","ask_price","bid_price","bid_amount"]
[1724485764712,2.4986,2764.5,2764.2,0.04687049]
[1724485765112,6.11589,2764.5,2764.2,0.04687049]
[1724485765490,6.11589,2764.5,2764.0,3.61786]
[1724485765839,6.11589,2764.5,2764.1,1.30498194]
[1724485766152,6.11589,2764.5,2764.1,0.04691794]
[1724485766694,4.88699545,2764.2,2764.1,0.04691794]
[1724485766894,3.61784,2764.1,2763.6,0.75764713]
[1724485767125,2.4986,2764.1,2763.7,3.14549158]
[1724485767324,2.4986,2764.1,2763.6,3.61844]
[1724485767648,6.11643,2764.1,2763.7,1.25822977]
[1724485767854,2.4986,2764.1,2763.6,1.88736435]
[1724485768007,2.4986,2764.1,2763.5,6.87454713]
[1724485768345,2.4986,2764.1,2763.6,7.3140244]
[1724485768498,2.4986,2764.1,2763.6,4.16844]
[1724485771590,3.23715955,2764.1,2763.6,4.16844]
[1724485772127,2.253,2764.0,2763.6,4.16844]
[1724485772508,5.87097,2764.0,2763.6,0.55]
[1724485772837,5.87097,2764.0,2763.5,0.55]
[1724485773028,7.0206225,2764.0,2763.5,0.55]
[1724485776299,5.87097,2764.0,2763.5,0.55]
[1724485776701,5.87097,2764.0,2763.5,1.81931545]
[1724485777236,5.87097,2764.0,2763.5,5.43787545]
[1724485777237,2.253,2764.0,2763.5,5.43787545]
[1724485777412,5.87068,2764.2,2763.6,3.61845]
[1724485777806,5.87068,2764.2,2763.7,0.04656722]
[1724485778113,5.87068,2764.2,2763.7,1.31588267]
[1724485778114,7.30505991,2764.2,2763.7,1.31588267]
[1724485778316,5.87068,2764.2,2763.7,1.31588267]
[1724485779634,9.48844,2764.2,2763.7,1.31588267]
[1724485780013,5.87068,2764.2,2763.7,1.31588267]
[1724485780321,9.48844,2764.2,2763.7,1.31588267]
[1724485780508,9.48844,2764.2,2763.7,1.26931545]
[1724485781030,3.61781,2764.1,2763.7,1.26931545]
[1724485782008,3.61781,2764.1,2763.8,0.04644527]
[1724485782209,4.566659,2764.1,2763.8,0.04644527]
[1724485782533,4.566659,2764.1,2763.6,6.02659]
[1724485782837,4.566659,2764.1,2763.5,1.81931545]
[1724485782838,2.3474,2763.9,2763.7,0.59648302]
[1724485784414,3.61797,2764.0,2763.7,0.59648302]
[1724485788558,3.61768,2764.2,2763.7,3.05858302]
[1724485789361,2.3474,2764.3,2763.7,3.05858302]
[1724485789362,2.3474,2764.3,2763.7,3.85321887]
[1724485789522,3.61769,2764.2,2763.7,3.85321887]
[1724485790142,3.61769,2764.2,2763.7,5.12253432]
[1724485791742,7.23546,2764.2,2763.7,5.12253432]
[1724485793254,3.61782,2764.1,2763.7,5.12253432]
[1724485793565,3.61782,2764.1,2763.7,1.39111887]
[1724485793860,3.61782,2764.1,2763.7,0.59648302]
[1724485794016,3.61794,2764.0,2763.7,0.59648302]
[1724485795565,3.61818,2763.9,2763.7,0.04648302]
[1724485795849,3.61818,2763.9,2763.5,2.4621]
[1724485796051,3.61818,2763.9,2763.8,0.04326287]
[1724485796248,3.61818,2763.9,2763.5,2.4621]
[1724485796418,3.61818,2763.9,2763.8,0.04326287]
[1724485796618,3.61818,2763.9,2763.5,2.4621]
[1724485796837,3.61818,2763.9,2763.8,0.04326287]
[1724485797443,3.61818,2763.9,2763.5,2.4621]
[1724485797653,3.61818,2763.9,2763.8,0.04326287]
[1724485797856,3.61818,2763.9,2763.5,2.4621]
[1724485798053,3.61818,2763.9,2763.8,0.04326287]
[1724485798220,3.61818,2763.9,2763.5,2.4621]
[1724485798409,3.61818,2763.9,2763.8,0.04326287]
[1724485798609,3.61818,2763.9,2763.5,2.4621]
[1724485798822,3.61818,2763.9,2763.8,0.04326287]
[1724485799028,3.61818,2763.9,2763.5,2.4621]
[1724485799228,3.61818,2763.9,2763.8,0.04326287]
[1724485799751,3.61818,2763.9,2763.5,2.4621]
[1724485799950,3.61818,2763.9,2763.6,0.04333838]
[1724485802961,3.61776,2764.2,2763.7,5.92909]
[1724485802962,3.61769,2764.2,2763.7,5.92909]
[1724485803162,3.61769,2764.2,2763.8,0.04326287]
[1724485803325,3.61755,2764.3,2763.7,5.92909]
[1724485803531,3.61755,2764.3,2763.8,1.26931545]
[1724485803851,7.45,2764.4,2764.0,3.58011545]
[1724485804064,7.45,2764.4,2764.0,7.19802545]
[1724485804388,7.45,2764.4,2764.1,0.04328072]
[1724485804530,3.61737,2764.5,2764.1,0.04328072]
[1724485805768,7.23476,2764.5,2764.1,0.04328072]
[1724485805930,12.21,2764.7,2764.2,1.26931545]
[1724485805931,15.8271,2764.7,2764.2,1.26931545]
[1724485806129,12.21,2764.7,2764.3,5.97153873]
[1724485806330,9.9472,2765.1,2764.4,5.43673545]
[1724485806675,7.45,2765.1,2764.6,7.19718545]
[1724485806882,7.45,2765.1,2764.7,0.55]
[1724485807033,7.45,2765.1,2764.7,0.59289242]
[1724485807450,7.45,2765.1,2764.7,1.73363921]
[1724485807636,7.45,2765.1,2764.9,2.3108]
[1724485808062,7.45,2765.1,2765.0,0.04274526]
[1724485808365,3.61619,2765.4,2765.0,0.04274526]
[1724485808767,3.61619,2765.4,2765.0,1.31206071]
[1724485810661,3.61603,2765.5,2765.0,1.31206071]
[1724485811528,7.23213,2765.5,2765.0,1.31206071]
[1724485811729,3.61603,2765.5,2765.0,1.31206071]
[1724485812234,7.23213,2765.5,2765.0,1.31206071]
[1724485812434,3.61603,2765.5,2765.0,1.31206071]
[1724485813852,3.61603,2765.5,2765.1,0.55]
[1724485816087,3.61612,2765.4,2765.2,0.04266982]
[1724485818076,3.61603,2765.5,2765.2,0.04266982]
[1724485818972,7.2321,2765.5,2765.2,0.04266982]
[1724485819177,3.61603,2765.5,2765.2,0.04266982]
[1724485819340,7.2321,2765.5,2765.2,0.04266982]
[1724485819673,3.61603,2765.5,2765.2,0.04266982]
[1724485820271,7.23211,2765.5,2765.2,0.04266982]
[1724485821240,3.61624,2765.3,2765.2,0.04266982]
[1724485821740,3.6164,2765.2,2764.9,3.58011545]
[1724485822064,3.6164,2765.2,2765.0,0.04203003]
[1724485823905,7.23247,2765.4,2765.0,0.04203003]
[1724485824044,3.61625,2765.3,2765.0,0.04203003]
[1724485825167,3.61623,2765.4,2765.0,0.04203003]
[1724485826281,7.23243,2765.4,2765.0,0.04203003]
[1724485826669,3.6162,2765.4,2765.0,0.04203003]
[1724485833692,11.06592,2765.6,2765.1,4.88572545]
[1724485833931,11.06592,2765.6,2765.2,2.334]
[1724485834107,11.06592,2765.6,2765.2,2.37583642]
[1724485834879,3.61592,2765.6,2765.2,2.37583642]
[1724485835196,3.61592,2765.6,2765.2,2.334]
[1724485835371,3.61592,2765.6,2765.3,0.04179871]
[1724485835568,3.61592,2765.6,2765.2,2.334]
[1724485835811,3.61592,2765.6,2765.3,0.04179871]
[1724485836010,3.61592,2765.6,2765.2,2.334]
[1724485836186,3.61592,2765.6,2765.3,0.04179871]
[1724485836389,3.61592,2765.6,2765.2,2.334]
[1724485836604,3.61592,2765.6,2765.3,0.04179871]
[1724485836790,3.61592,2765.6,2765.2,2.334]
[1724485836992,3.61592,2765.6,2765.3,1.31111416]
[1724485837415,7.23137,2765.8,2765.3,1.31111416]
[1724485837605,3.61574,2765.7,2765.3,1.26931545]
[1724485839214,3.61574,2765.7,2765.4,2.334]
[1724485839415,3.61574,2765.7,2765.5,0.04172329]
[1724485842212,3.61585,2765.6,2765.5,0.04172329]
[1724485844300,7.45,2765.9,2765.5,1.31103874]
[1724485844505,7.45,2765.9,2765.7,1.26931545]
[1724485844801,11.06554,2765.9,2765.7,1.26931545]
[1724485845782,11.06554,2765.9,2765.5,1.26931545]
[1724485845983,11.06554,2765.9,2765.6,0.04102387]
[1724485846530,12.21,2766.3,2765.7,3.76701545]
[1724485846531,3.61514,2766.2,2765.7,3.76701545]
[1724485846685,3.61514,2766.2,2765.9,1.26931545]
[1724485847026,3.61514,2766.2,2766.0,0.04087307]
[1724485849020,7.22978,2766.4,2766.0,0.04087307]
[1724485849227,3.61497,2766.3,2766.0,0.04087307]
[1724485849680,3.61487,2766.4,2766.0,0.04087307]
[1724485849885,3.61487,2766.4,2766.1,3.76701545]
[1724485850298,3.61487,2766.4,2766.2,0.04049213]
[1724485851639,7.22979,2766.4,2766.2,0.04049213]
[1724485851787,7.22976,2766.4,2766.2,0.04049213]
[1724485852115,7.22986,2766.3,2766.2,0.04049213]
[1724485852485,3.61493,2766.3,2765.7,1.26931545]
[1724485852683,3.61493,2766.3,2766.2,0.04015263]
[1724485852684,7.22986,2766.3,2766.2,0.04015263]
[1724485852914,3.6154,2766.0,2765.6,2.4977]
[1724485853433,3.6154,2766.0,2765.5,1.26931545]
[1724485853589,3.6154,2766.0,2765.5,2.00762199]
[1724485853790,3.61547,2765.9,2765.5,2.00762199]
[1724485854211,3.61547,2765.9,2765.5,0.73830654]
[1724485856523,1.022976,2766.4,2764.9,2.4977]
[1724485856524,3.61618,2765.4,2764.9,2.4977]
[1724485856723,3.55511545,2765.7,2764.6,6.13225247]
[1724485856724,3.61647,2765.2,2764.6,8.62995247]
[1724485857841,3.61647,2765.2,2764.6,9.89926792]
[1724485857990,3.61647,2765.2,2764.6,11.25093271]
[1724485858344,3.61647,2765.2,2764.6,8.73582024]
[1724485858487,3.61689,2764.8,2764.2,4.37606333]
[1724485858691,3.61689,2764.8,2764.3,1.25789255]
[1724485859022,3.61689,2764.8,2764.2,3.61757]
[1724485859221,3.61689,2764.8,2764.2,4.78050733]
[1724485859393,3.61689,2764.8,2764.2,10.28494975]
[1724485859813,3.61689,2764.8,2764.2,10.2848664]
[1724485860700,3.61689,2764.8,2764.3,1.25788471]
[1724485860897,3.61667,2765.0,2764.4,3.61741]
[1724485861201,3.61667,2765.0,2764.4,4.64588444]
[1724485861792,3.61667,2765.0,2764.4,1.02847444]
[1724485861793,3.61676,2764.9,2764.4,1.02847444]
[1724485861995,3.61676,2764.9,2764.3,1.88675849]
[1724485862440,3.61676,2764.9,2764.2,6.66726582]
[1724485862646,3.61676,2764.9,2764.3,1.80785688]
[1724485862947,3.61676,2764.9,2764.3,4.16755]
[1724485864421,3.61676,2764.9,2764.3,0.55]
[1724485865607,3.61676,2764.9,2764.3,5.13903025]
[1724485867091,3.61667,2765.0,2764.3,0.97150025]
[1724485867092,3.6169,2764.8,2764.3,0.97150025]
[1724485867297,3.6172,2764.6,2764.1,2.4977]
[1724485867491,3.6172,2764.6,2764.2,0.55]
[1724485868042,9.5917,2764.8,2764.3,0.03925713]
[1724485868205,9.5917,2764.8,2764.2,0.55]
[1724485868401,9.5917,2764.8,2764.3,0.03925713]
[1724485868604,5.9747,2764.8,2764.2,1.84286911]
[1724485868807,5.9747,2764.8,2764.3,0.03925713]
[1724485869058,2.3578,2764.8,2764.3,3.61746]
[1724485869218,7.23341,2765.0,2764.4,0.03921939]
[1724485869219,3.61679,2764.9,2764.4,0.03921939]
[1724485870732,3.61669,2765.0,2764.4,0.58917424]
[1724485870932,3.61652,2765.1,2764.5,2.9986]
[1724485871262,3.61652,2765.1,2764.6,0.03914393]
[1724485872228,3.61663,2765.0,2764.6,0.03914393]
[1724485872844,7.23337,2765.0,2764.6,0.03914393]
[1724485874251,3.61663,2765.0,2764.6,0.03914393]
[1724485874663,3.61677,2764.9,2764.6,0.03914393]
[1724485877582,3.61692,2764.8,2764.6,0.03914393]
[1724485877766,3.61702,2764.7,2764.6,0.03914393]
[1724485877970,3.61702,2764.7,2764.1,2.4486]
[1724485877971,3.61731,2764.5,2764.1,2.4486]
[1724485878378,3.61731,2764.5,2763.9,6.06658]
[1724485878675,3.61731,2764.5,2763.9,10.36706733]
[1724485878889,3.61731,2764.5,2764.0,3.6179]
[1724485879142,7.23415,2764.7,2764.1,0.55]
[1724485879311,7.23414,2764.7,2764.1,4.1678]
[1724485879618,3.61702,2764.7,2764.1,4.1678]
[1724485879815,3.61702,2764.7,2764.1,5.25948873]
[1724485880281,3.61702,2764.7,2764.1,8.87728873]
[1724485880487,3.61702,2764.7,2764.1,5.25948873]
[1724485880921,3.61702,2764.7,2764.1,8.87721873]
[1724485881117,3.61702,2764.7,2764.1,5.25941873]
[1724485881417,3.61702,2764.7,2764.1,8.87713873]
[1724485882204,3.61702,2764.7,2764.2,3.61766]
[1724485882420,3.61702,2764.7,2764.2,4.50536687]
[1724485882620,3.61702,2764.7,2764.2,5.77313104]
[1724485882788,3.61702,2764.7,2764.3,0.03913893]
[1724485882992,3.61702,2764.7,2764.2,5.77313104]
[1724485883204,3.61702,2764.7,2764.3,0.03913893]
[1724485883400,3.61702,2764.7,2764.2,5.77313104]
[1724485883687,3.61702,2764.7,2764.3,0.03913893]
[1724485883889,2.2631,2764.6,2764.3,0.03913893]
[1724485884093,2.2631,2764.6,2764.1,4.16772]
[1724485884289,2.2631,2764.6,2764.4,0.03908663]
[1724485884290,3.61729,2764.5,2764.4,0.03908663]
[1724485884490,3.61729,2764.5,2763.9,6.06665]
[1724485884491,4.567031,2764.5,2763.9,6.06665]
[1724485884826,2.2631,2764.6,2763.8,1.26776417]
[1724485884827,3.61747,2764.4,2763.8,3.61818]
[1724485885014,3.61747,2764.4,2763.9,0.0392705]
[1724485885325,3.61747,2764.4,2763.8,4.16818]
[1724485885635,3.61747,2764.4,2763.9,0.0392705]
[1724485886334,2.2631,2764.3,2763.9,0.0392705]
[1724485886754,3.61776,2764.2,2763.9,0.0392705]
[1724485887107,3.61776,2764.2,2763.6,3.61839]
[1724485887313,3.61776,2764.2,2764.0,0.03923275]
[1724485887513,3.61776,2764.2,2763.6,3.61839]
[1724485887736,3.61776,2764.2,2764.1,0.039195]
[1724485888218,3.61776,2764.2,2763.6,3.61839]
[1724485888413,3.61776,2764.2,2763.7,0.03946567]
[1724485889871,5.88076,2764.3,2763.7,3.65779567]
[1724485890220,5.88075,2764.3,2763.7,0.03946567]
[1724485890429,3.61778,2764.2,2763.7,0.03946567]
[1724485891248,3.61781,2764.1,2763.7,0.03946567]
[1724485893029,3.61781,2764.1,2763.7,0.05387318]
[1724485893272,3.61781,2764.1,2763.6,3.61839]
[1724485896692,3.61781,2764.1,2763.5,2.4064]
[1724485896975,3.61781,2764.1,2763.6,0.55]
[1724485898354,3.61781,2764.1,2763.6,1.569353]
[1724485898661,3.61802,2764.0,2763.6,0.55]
[1724485898879,3.61802,2764.0,2763.5,2.4064]
[1724485899464,3.61802,2764.0,2763.6,0.05261752]
[1724485900155,3.61802,2764.0,2763.5,2.4064]
[1724485904986,7.23608,2764.0,2763.5,2.4064]
[1724485905314,5.99492,2764.0,2763.4,3.61864]
[1724485905476,5.99492,2764.0,2763.5,0.55]
[1724485907365,9.61294,2764.0,2763.5,0.55]
[1724485907691,5.99492,2764.0,2763.5,0.55]
[1724485909426,3.61807,2763.9,2763.5,0.55]
[1724485910398,3.61807,2763.9,2763.5,1.81848722]
[1724485910935,3.61807,2763.9,2763.6,0.05264711]
[1724485912033,3.61807,2763.9,2763.5,1.81848722]
[1724485914229,7.23623,2763.9,2763.5,1.81848722]
[1724485917106,3.61807,2763.9,2763.5,1.81848722]
[1724485917327,7.23623,2763.9,2763.5,1.81848722]
[1724485918450,7.23623,2763.9,2763.5,0.55]
[1724485918653,7.23623,2763.9,2763.4,1.81848722]
[1724485920257,5.99545,2763.6,2763.1,2.3655]
[1724485920421,3.61868,2763.5,2763.2,1.26848722]
[1724485920625,3.61873,2763.4,2763.2,0.05270193]
[1724485920825,2.3769,2763.6,2762.7,7.1228]
[1724485920826,6.357633,2763.3,2762.7,3.91455026]
[1724485921026,3.61906,2763.2,2762.8,1.25853726]
[1724485921259,3.61906,2763.2,2762.8,0.05295376]
[1724485921460,3.61906,2763.2,2762.7,1.26848722]
[1724485921637,3.61906,2763.2,2762.8,0.05297804]
[1724485921833,5.99577,2763.3,2762.8,0.05297804]
[1724485922179,3.61867,2763.5,2762.9,3.70454562]
[1724485922484,7.23738,2763.5,2762.9,3.70454562]
[1724485922762,7.23738,2763.5,2763.1,1.26848722]
[1724485922763,3.61867,2763.5,2763.1,1.26848722]
[1724485923261,3.61867,2763.5,2763.2,0.05278284]
[1724485925128,7.23736,2763.5,2763.2,0.05278284]
[1724485925331,4.46179023,2763.5,2763.2,0.05278284]
[1724485926544,4.46179023,2763.5,2763.0,1.26848722]
[1724485926740,3.61867,2763.5,2763.3,0.05279812]
[1724485926964,3.61867,2763.5,2763.0,1.26848722]
[1724485927164,3.61867,2763.5,2763.4,0.05273517]
[1724485927331,3.61867,2763.5,2763.0,1.26848722]
[1724485927532,3.61867,2763.5,2763.4,0.05273517]
[1724485927736,4.586487,2763.5,2763.0,1.26848722]
[1724485927973,3.61867,2763.5,2763.4,0.05273517]
[1724485928175,3.61867,2763.5,2763.0,1.26848722]
[1724485928362,3.61867,2763.5,2763.4,0.05273517]
[1724485928569,3.61867,2763.5,2763.0,1.26848722]
[1724485928804,3.61867,2763.5,2763.4,0.05273517]
[1724485928946,4.586487,2763.5,2763.0,1.26848722]
[1724485929143,3.61867,2763.5,2763.4,0.05273517]
[1724485929348,3.61867,2763.5,2763.0,1.26848722]
[1724485929541,3.61867,2763.5,2763.4,0.05273517]
[1724485929742,3.61867,2763.5,2763.0,1.26848722]
[1724485929944,3.61867,2763.5,2763.4,0.05273517]
[1724485930179,4.586487,2763.5,2763.0,1.26848722]
[1724485930396,3.61867,2763.5,2763.4,0.05273517]
[1724485930546,3.61867,2763.5,2763.0,1.26848722]
[1724485930750,3.61867,2763.5,2763.4,0.05273517]
[1724485930988,3.61867,2763.5,2763.0,1.26848722]
[1724485931138,3.61867,2763.5,2763.4,0.05273517]
[1724485931337,3.61867,2763.5,2763.0,1.26848722]
[1724485931574,3.61867,2763.5,2763.4,0.05273517]
[1724485931761,7.23735,2763.5,2763.0,1.26848722]
[1724485931965,3.61867,2763.5,2763.4,0.05273517]
[1724485932171,3.61867,2763.5,2763.0,1.26848722]
[1724485932172,4.586487,2763.5,2763.0,1.26848722]
[1724485932348,3.61867,2763.5,2763.0,1.26848722]
[1724485932549,3.61867,2763.5,2763.1,0.05292402]
[1724485932861,7.23735,2763.5,2763.1,0.05292402]
[1724485933246,3.61867,2763.5,2763.1,0.05292402]
[1724485934987,7.23736,2763.5,2763.1,0.05292402]
[1724485935174,3.61867,2763.5,2763.1,0.05292402]
[1724485936661,7.23737,2763.5,2763.1,0.05292402]
[1724485937801,3.61867,2763.5,2763.1,0.05292402]
[1724485938099,3.61876,2763.4,2763.1,0.05292402]
[1724485942177,4.18617365,2763.4,2763.1,0.05292402]
[1724485942804,2.3824,2763.3,2763.1,0.05292402]
[1724485943203,2.3824,2763.3,2762.8,4.88797722]
[1724485943402,2.3824,2763.3,2763.2,0.05286645]
[1724485943599,2.3824,2763.3,2762.9,0.55]
[1724485943800,6.00126,2763.3,2763.2,0.05286645]
[1724485944109,6.00126,2763.3,2762.7,6.77594455]
[1724485944275,6.00126,2763.3,2763.2,0.05286645]
[1724485944481,7.14684909,2763.3,2762.8,0.55]
[1724485944784,7.14684909,2763.3,2762.9,1.26848722]
[1724485944785,6.00126,2763.3,2762.9,1.26848722]
[1724485945175,6.00126,2763.3,2763.0,0.05299236]
[1724485948389,6.00126,2763.3,2762.8,5.43796722]
[1724485948593,6.00126,2763.3,2763.1,0.05291057]
[1724485948793,7.01998836,2763.3,2763.1,0.05291057]
[1724485949112,7.01998836,2763.3,2762.8,5.43796722]
[1724485949313,6.00126,2763.3,2762.8,5.43796722]
[1724485949615,6.00126,2763.3,2762.9,0.05303649]
[1724485957285,2.3824,2763.3,2762.9,1.32152371]
[1724485961007,2.3824,2763.3,2762.9,0.05303649]
[1724485965130,2.3824,2763.3,2763.0,3.14634541]
[1724485965336,2.3824,2763.3,2763.1,0.05331264]
[1724485965536,2.3824,2763.3,2762.9,1.88787122]
[1724485965836,2.3824,2763.3,2763.0,1.31195664]
[1724485966016,2.3824,2763.3,2763.0,0.0533756]
[1724485966408,2.3824,2763.3,2762.8,4.92793333]
[1724485966645,2.3824,2763.3,2763.1,0.05331264]
[1724485966816,2.3824,2763.3,2762.8,4.92793333]
[1724485967127,2.3824,2763.3,2763.2,0.05324969]
[1724485967328,3.344376,2763.3,2762.8,4.92793333]
[1724485967530,2.3824,2763.3,2762.9,3.14650561]
[1724485967707,2.3824,2763.3,2763.0,0.0533756]
[1724485967914,2.3824,2763.3,2762.8,4.92793333]
[1724485968235,2.3824,2763.3,2762.9,3.19994597]
[1724485968422,2.3824,2763.3,2763.0,1.25858184]
[1724485968624,2.3824,2763.3,2762.9,0.05343856]
[1724485968826,2.3824,2763.3,2763.1,0.05331264]
[1724485969033,2.3824,2763.3,2763.0,0.0533756]
[1724485969200,2.3824,2763.3,2763.2,0.05324969]
[1724485969396,3.344376,2763.3,2763.1,0.05332887]
[1724485969621,3.329276,2763.3,2763.2,0.05326591]
[1724485970033,3.329276,2763.3,2762.9,1.88791384]
[1724485970238,2.3673,2763.3,2763.2,0.05326591]
[1724485970403,2.3673,2763.3,2762.9,1.88791302]
[1724485970605,2.3673,2763.3,2763.2,0.05326591]
[1724485970831,2.3673,2763.3,2762.9,1.88790631]
[1724485971033,2.3673,2763.3,2763.2,0.05307703]
[1724485971202,3.45461472,2763.3,2762.9,1.88790638]
[1724485971535,2.3673,2763.3,2762.8,4.16944]
[1724485971742,2.3673,2763.3,2762.9,3.19980377]
[1724485971954,2.3673,2763.3,2762.9,0.05326589]
[1724485972628,2.3673,2763.3,2763.0,1.2585991]
[1724485972829,2.3673,2763.3,2762.9,0.05326589]
[1724485973035,2.3673,2763.3,2762.8,4.92793333]
[1724485973036,2.3673,2763.3,2763.1,0.05313998]
[1724485973227,2.3673,2763.3,2763.0,0.05320293]
[1724485973434,2.3673,2763.3,2762.8,4.92793333]
[1724485973633,2.3673,2763.3,2763.1,0.05313998]
[1724485973810,2.3673,2763.3,2762.8,4.16944]
[1724485974012,5.98618,2763.3,2763.2,0.05307703]
[1724485974214,2.3673,2763.2,2762.8,4.16944]
[1724485974424,2.3673,2763.2,2762.9,3.14654305]
[1724485974644,2.3673,2763.2,2762.8,4.92793333]
[1724485974851,2.3673,2763.2,2762.9,3.14651742]
[1724485975061,2.3673,2763.2,2762.8,4.16944]
[1724485975217,2.3673,2763.2,2762.9,1.25861346]
[1724485975550,2.3673,2763.2,2762.5,2.78547389]
[1724485975551,2.3673,2763.0,2762.5,0.75849333]
[1724485975753,5.98662,2763.0,2762.6,3.14691847]
[1724485975940,9.60596,2763.0,2762.5,0.75849333]
[1724485976138,2.3673,2762.9,2762.6,3.14690362]
[1724485976449,2.3673,2762.9,2762.4,3.61996]
[1724485976450,3.45474472,2762.9,2762.4,3.61996]
[1724485976637,2.3673,2762.9,2762.5,3.14695525]
[1724485976948,2.3673,2762.9,2762.4,3.61996]
[1724485977148,2.3673,2762.9,2762.5,3.69693231]
[1724485977317,2.3673,2762.9,2762.5,0.55]
[1724485977953,2.3673,2763.1,2762.6,1.26848722]
[1724485978130,2.3673,2763.1,2762.8,3.61947]
[1724485978827,2.3673,2763.1,2762.7,0.94034205]
[1724485978828,2.3673,2763.1,2762.7,0.18184872]
[1724485979027,2.3673,2763.1,2762.8,1.80864782]
[1724485979223,2.3673,2763.1,2762.8,1.81848722]
[1724485980415,2.3673,2763.1,2762.8,5.43799722]
[1724485980619,2.3673,2763.1,2762.8,1.81848722]
[1724485983551,2.3673,2763.1,2762.8,0.55]
[1724485985961,2.3673,2763.1,2762.9,1.25860285]
[1724485986168,2.3673,2763.1,2762.8,0.55]
[1724485987166,2.3673,2763.1,2762.7,0.55]
[1724485987829,2.3673,2763.1,2762.8,0.04790612]
[1724485988257,3.327838,2763.1,2762.7,0.55]
[1724485988564,3.327838,2763.1,2762.8,0.04790612]
[1724485988769,2.3673,2763.1,2762.8,0.04790612]
[1724485988967,2.3673,2763.1,2762.7,0.55]
[1724485989159,2.3673,2763.1,2762.9,0.04784945]
[1724485989559,2.3673,2763.1,2762.7,0.55]
[1724485989764,2.3673,2763.1,2762.8,1.30657131]
[1724485989939,2.3673,2763.1,2762.8,0.04790612]
[1724485990140,2.3673,2763.1,2762.7,0.55]
[1724485990446,2.3673,2763.1,2762.8,1.30656027]
[1724485990637,2.3673,2763.1,2762.8,0.04790612]
[1724485991037,2.4825,2763.0,2762.7,0.55]
[1724485991273,2.4825,2763.0,2762.9,0.04784945]
[1724485991731,2.4825,2763.0,2762.7,0.55]
[1724485991939,2.4825,2763.0,2762.8,0.04790612]
[1724485992138,2.4825,2763.0,2762.7,0.55]
[1724485992372,2.4825,2763.0,2762.8,0.04790612]
[1724485992574,2.4825,2763.0,2762.7,0.55]
[1724485992872,2.4825,2763.0,2762.9,0.04784945]
[1724485993074,2.4825,2763.0,2762.8,0.04790612]
[1724485993268,2.4825,2763.0,2762.9,0.04784945]
[1724485993574,2.4825,2763.0,2762.6,4.37826333]
[1724485993749,2.4825,2763.0,2762.9,0.04784945]
[1724485993946,2.4825,2763.0,2762.6,4.37826333]
[1724485994140,2.4825,2763.0,2762.7,3.19466662]
[1724485994341,2.4825,2763.0,2762.7,0.04796279]
[1724485995044,2.4825,2763.0,2762.8,1.25864402]
[1724485995267,2.4825,2763.0,2762.8,0.05301586]
[1724485995676,2.4825,2763.0,2762.6,4.37818333]
[1724485995847,2.4825,2763.0,2762.9,0.05295289]
[1724485996046,2.4825,2763.0,2762.6,4.37818333]
[1724485996275,2.4825,2763.0,2762.9,0.05295289]
[1724485996455,2.4825,2763.0,2762.6,4.37818333]
[1724485996656,2.4825,2763.0,2762.9,0.05295289]
[1724485996855,2.4825,2763.0,2762.6,4.37818333]
[1724485997158,2.4825,2763.0,2762.7,3.14668578]
[1724485997358,2.4825,2763.0,2762.8,0.05301586]
[1724485997680,2.4825,2763.0,2762.6,5.89836268]
[1724485997883,2.4825,2763.0,2762.9,0.05295289]
[1724485998058,2.4825,2763.0,2762.6,4.37818333]
[1724485998261,2.4825,2763.0,2762.9,0.05295289]
[1724485998458,2.4825,2763.0,2762.6,4.37818333]
[1724485998659,2.4825,2763.0,2762.9,0.05295289]
[1724485999350,2.4825,2763.0,2762.6,4.37818333]
[1724485999682,2.4825,2763.0,2762.7,3.19977574]
[1724485999877,2.4825,2763.0,2762.7,0.05307883]
[1724486000549,2.4825,2763.0,2762.8,1.25867815]
[1724486000875,2.4825,2763.0,2762.9,0.05295289]
[1724486001281,2.4825,2763.0,2762.6,4.37818333]
[1724486001473,2.4825,2763.0,2762.9,0.05295289]
[1724486001673,2.4825,2763.0,2762.6,4.37818333]
[1724486001989,2.4825,2763.0,2762.7,3.14665401]
[1724486002188,2.4825,2763.0,2762.8,1.2586616]
[1724486002394,2.4825,2763.0,2762.8,0.05301586]
[1724486002684,2.4825,2763.0,2762.6,4.37818333]
[1724486002850,2.4825,2763.0,2762.9,0.05295289]
[1724486003051,2.4825,2763.0,2762.6,4.37818333]
[1724486003249,2.4825,2763.0,2762.7,3.14667608]
[1724486003485,2.4825,2763.0,2762.8,1.25867043]
[1724486003691,2.4825,2763.0,2762.8,0.05301586]
[1724486003987,2.4825,2763.0,2762.6,4.37818333]
[1724486004174,2.4825,2763.0,2762.9,0.05295289]
[1724486004483,2.4825,2763.0,2762.6,4.37818333]
[1724486004650,2.4825,2763.0,2762.9,0.052961]
[1724486004851,2.4825,2763.0,2762.6,4.37818333]
[1724486005051,2.4825,2763.0,2762.9,0.052961]
[1724486005551,2.4825,2763.0,2762.6,4.37818333]
[1724486005753,2.4825,2763.0,2762.7,3.19973076]
[1724486005951,2.4825,2763.0,2762.8,1.25865753]
[1724486006292,2.4825,2763.0,2762.9,0.052961]
[1724486006853,2.4825,2763.0,2762.9,0.052764]
[1724486006992,2.4825,2763.0,2762.6,4.37818333]
[1724486007163,2.4825,2763.0,2762.9,0.052764]
[1724486007364,2.4825,2763.0,2762.6,4.37818333]
[1724486007682,2.4825,2763.0,2762.7,3.19953434]
[1724486007991,2.4825,2763.0,2762.8,1.25865776]
[1724486008175,2.4825,2763.0,2762.8,0.05282697]
[1724486008374,2.4825,2763.0,2762.6,4.37818333]
[1724486008564,2.4825,2763.0,2762.9,0.052764]
[1724486008766,2.4825,2763.0,2762.6,4.37818333]
[1724486008999,2.4825,2763.0,2762.7,3.14664323]
[1724486009193,2.4825,2763.0,2762.8,3.14664323]
[1724486009497,2.4825,2763.0,2762.8,0.05282697]
[1724486009863,2.4825,2763.0,2762.6,4.37818333]
[1724486010090,2.4825,2763.0,2762.9,0.052764]
[1724486010277,2.4825,2763.0,2762.6,4.37818333]